bitfinex/quotes_SOLUSD_20241223
["timestamp","ask_amount","ask_price","bid_price","bid_amount"]
[1734987952832,23.776884,192.84,192.73,37.89312179]
[1734987953031,0.12549,192.83,192.73,37.89312179]
[1734987953357,23.776884,192.84,192.73,37.89312179]
[1734987954352,0.12549,192.83,192.73,37.89312179]
[1734987954657,0.12549,192.83,192.71,0.7780123]
[1734987954658,10.3684,192.9,192.77,37.89312179]
[1734987955264,10.3684,192.9,192.79,37.89312179]
[1734987955565,10.3664,192.93,192.83,37.89312179]
[1734987956066,10.3664,192.93,192.78,2.0283]
[1734987956067,0.12549,192.88,192.75,37.89312179]
[1734987956658,55.94027469,192.95,192.81,37.89312179]
[1734987956960,25.94027469,192.95,192.81,37.89312179]
[1734987957126,30.0,192.9,192.79,37.89312179]
[1734987957329,0.12549,192.87,192.74,37.89312179]
[1734987958061,20.0,192.84,192.74,37.89312179]
[1734987958254,0.12549,192.83,192.74,37.89312179]
[1734987958638,0.12549,192.83,192.76,37.89312179]
[1734987958853,8.00498811,192.98,192.74,0.77795458]
[1734987958854,30.0,192.96,192.74,0.77795458]
[1734987959059,8.00498811,192.98,192.82,37.89312179]
[1734987959368,10.3647,192.97,192.84,37.89312179]
[1734987959662,10.3664,192.93,192.82,37.89312179]
[1734987959863,0.12549,192.92,192.8,37.89312179]
[1734987960026,0.12549,192.92,192.78,37.89312179]
[1734987960228,40.3664,192.93,192.78,37.89312179]
[1734987960229,10.3664,192.93,192.78,37.89312179]
[1734987960429,10.3664,192.93,192.8,37.89312179]
[1734987960826,10.3664,192.93,192.82,37.89312179]
[1734987961050,31.0952,192.96,192.84,37.89312179]
[1734987961271,6.55785197,192.99,192.86,37.89312179]
[1734987961272,10.3632,192.99,192.86,37.89312179]
[1734987961563,10.0,193.0,192.9,37.89312179]
[1734987961926,10.3633,192.99,192.86,37.89312179]
[1734987962134,0.12549,192.93,192.85,37.89312179]
[1734987962332,10.3648,192.96,192.85,37.89312179]
[1734987962567,10.0,193.0,192.89,37.89312179]
[1734987962758,10.0,193.0,192.91,37.89312179]
[1734987963355,10.0,193.0,192.93,37.89312179]
[1734987963839,10.0,193.0,192.91,44.46092179]
[1734987964036,10.0,193.0,192.93,37.89312179]
[1734987964468,10.0,193.0,192.98,37.89312179]
[1734987965044,10.0,193.0,192.99,0.77687043]
[1734987965236,10.0,193.0,192.99,38.66999222]
[1734987965456,10.0,193.0,192.99,37.89312179]
[1734987965915,10.0,193.0,192.98,37.89312179]
[1734987966280,10.0,193.0,192.98,23.24907058]
[1734987966873,10.0,193.0,192.95,23.24907058]
[1734987967778,10.0,193.0,192.94,23.24907058]
[1734987968073,0.12549,192.99,192.91,31.86017058]
[1734987968268,10.0,193.0,192.93,23.24907058]
[1734987968580,10.0,193.0,192.98,23.24907058]
[1734987968747,10.0,193.0,192.96,23.24907058]
[1734987968942,10.0,193.0,192.95,23.24907058]
[1734987969266,10.0,193.0,192.93,0.77715146]
[1734987969267,10.0,193.0,192.98,23.24907058]
[1734987969471,10.0,193.0,192.99,23.24907058]
[1734987970180,7.3687,193.0,192.99,23.24907058]
[1734987970748,1.0699,193.0,192.99,23.24907058]
[1734987970969,1.0699,193.0,192.99,36.20307058]
[1734987971375,0.6761286,193.13,193.0,6.0493]
[1734987971548,0.6761286,193.13,193.09,23.24907058]
[1734987971753,0.6761286,193.13,193.1,23.24907058]
[1734987971974,0.6761286,193.13,193.09,23.24907058]
[1734987972483,0.6761286,193.13,193.05,23.24907058]
[1734987972848,0.6761286,193.13,193.08,23.24907058]
[1734987973676,0.6761286,193.13,193.1,23.24907058]
[1734987973980,0.6761286,193.13,193.11,23.24907058]
[1734987974181,0.6761286,193.13,193.03,12.9508]
[1734987974350,0.6761286,193.13,193.08,23.24907058]
[1734987974682,0.6761286,193.13,193.1,23.24907058]
[1734987974901,0.6761286,193.13,193.07,23.24907058]
[1734987975102,0.6761286,193.13,193.05,23.24907058]
[1734987975103,0.12549,193.12,193.05,23.24907058]
[1734987975384,0.6761286,193.13,193.05,23.24907058]
[1734987975758,0.12549,193.12,193.03,23.24907058]
[1734987975950,0.6761286,193.13,193.03,23.24907058]
[1734987976145,0.6761286,193.13,193.05,23.24907058]
[1734987976654,0.12549,193.12,193.05,23.24907058]
[1734987976982,23.902374,193.12,193.03,23.24907058]
[1734987977157,23.902374,193.12,193.01,23.24907058]
[1734987977560,0.12549,193.12,193.03,23.24907058]
[1734987977956,0.6761286,193.13,193.05,23.24907058]
[1734987979068,23.776884,193.12,193.02,23.24907058]
[1734987979259,0.12549,193.09,192.97,23.24907058]
[1734987979464,23.902374,193.09,192.97,23.24907058]
[1734987979781,0.12549,193.06,192.97,23.24907058]
[1734987980151,10.3562,193.12,192.99,23.24907058]
[1734987980358,0.6761286,193.13,193.01,23.24907058]
[1734987980681,23.776884,193.08,192.97,23.24907058]
[1734987980902,23.776884,193.08,192.93,12.958]
[1734987980903,0.12549,193.07,192.99,23.24907058]
[1734987981073,20.0,193.1,192.99,23.24907058]
[1734987981379,0.12549,193.08,192.97,23.24907058]
[1734987981587,11.0318286,193.13,192.99,23.24907058]
[1734987981770,20.0,193.1,193.01,23.24907058]
[1734987981954,41.0318286,193.13,193.0,23.24907058]
[1734987982471,30.0,193.11,193.0,23.24907058]
[1734987982680,30.0,193.11,192.98,23.24907058]
[1734987983054,0.12549,193.07,192.98,23.24907058]
[1734987983255,23.776884,193.1,193.0,23.24907058]
[1734987983891,23.776884,193.1,193.02,23.24907058]
[1734987984186,0.6761286,193.13,193.04,23.24907058]
[1734987984901,0.12549,193.12,193.0,2.1145]
[1734987985106,0.12549,193.12,193.05,23.24907058]
[1734987985274,0.6761286,193.13,193.05,23.24907058]
[1734987985984,23.902374,193.12,193.01,23.24907058]
[1734987986397,23.902374,193.04,192.89,2.1145]
[1734987986590,23.902374,193.04,192.92,23.24907058]
[1734987986901,23.902374,193.04,192.94,23.24907058]
[1734987987105,0.12549,193.04,192.94,23.24907058]
[1734987987309,0.12549,193.04,192.92,23.24907058]
[1734987987514,0.12549,193.01,192.9,23.24907058]
[1734987987805,10.361,193.03,192.9,23.24907058]
[1734987987976,20.0,193.0,192.9,23.24907058]
[1734987988174,43.902374,192.99,192.9,23.24907058]
[1734987988419,43.902374,192.99,192.88,23.24907058]
[1734987988420,0.12549,192.97,192.88,23.24907058]
[1734987989989,30.0,193.04,192.85,12.9629]
[1734987989990,23.776884,193.03,192.92,23.24907058]
[1734987990373,0.12549,193.02,192.92,23.24907058]
[1734987990580,10.36,193.05,192.94,23.24907058]
[1734987991600,30.12549,193.04,192.92,23.24907058]
[1734987991802,0.12549,193.02,192.92,23.24907058]
[1734987992111,3.88497946,193.11,192.98,23.24907058]
[1734987992276,3.88497946,193.11,192.93,0.77724158]
[1734987992277,0.6197,193.11,193.02,23.24907058]
[1734987992472,0.6197,193.11,192.95,6.2291]
[1734987992473,0.6761286,193.13,193.04,23.24907058]
[1734987992702,0.6761286,193.13,193.02,23.24907058]
[1734987993014,30.0,193.11,192.98,23.24907058]
[1734987993188,10.3562,193.12,192.98,23.24907058]
[1734987993393,0.6761286,193.13,193.0,23.24907058]
[1734987993712,0.12549,193.12,193.02,23.24907058]
[1734987993914,0.6761286,193.13,193.02,23.24907058]
[1734987994721,0.12549,193.09,193.0,23.24907058]
[1734987995814,23.902374,193.09,193.0,23.24907058]
[1734987996119,20.0,193.06,192.98,23.24907058]
[1734987996284,20.0,193.05,192.98,23.24907058]
[1734987996607,0.12549,193.04,192.98,23.24907058]
[1734987996807,23.902374,193.04,192.96,23.24907058]
[1734987997106,23.902374,193.04,192.98,23.24907058]
[1734987997278,23.776884,193.07,192.98,23.24907058]
[1734987997690,0.12549,193.06,192.94,23.24907058]
[1734987997888,0.12549,193.06,192.89,6.4158]
[1734987997889,23.902374,193.03,192.92,23.24907058]
[1734987998087,20.0,193.0,192.94,23.24907058]
[1734987998488,0.12549,193.02,192.94,23.24907058]
[1734987999189,0.6197,193.09,192.98,23.24907058]
[1734987999375,0.6197,193.09,193.0,23.24907058]
[1734987999997,0.6761286,193.13,193.02,23.24907058]
[1734988000186,0.6761286,193.13,193.06,23.24907058]
[1734988000485,0.12549,193.12,193.06,23.24907058]
[1734988000692,0.12549,193.12,193.04,23.24907058]
[1734988000894,0.6761286,193.13,193.06,23.24907058]
[1734988001103,0.6761286,193.13,193.08,23.24907058]
[1734988001599,0.6761286,193.13,193.06,23.24907058]
[1734988002202,0.6761286,193.13,193.1,23.24907058]
[1734988002584,0.6761286,193.13,193.08,23.24907058]
[1734988003082,0.6761286,193.13,193.06,23.24907058]
[1734988003680,0.6761286,193.13,193.08,23.24907058]
[1734988004513,0.12549,193.16,193.06,23.24907058]
[1734988006515,20.0,193.14,193.06,23.24907058]
[1734988006814,0.12549,193.12,193.04,23.24907058]
[1734988007882,0.12549,193.09,193.02,23.24907058]
[1734988008216,23.902374,193.09,193.0,23.24907058]
[1734988009599,33.260274,193.09,193.0,23.24907058]
[1734988010409,20.0,193.06,193.0,23.24907058]
[1734988010776,20.0,193.06,192.94,19.1507]
[1734988010777,60.3597,193.06,192.98,23.24907058]
[1734988010977,60.3597,193.06,192.94,23.24907058]
[1734988011603,0.12549,193.04,192.94,23.24907058]
[1734988012018,0.12549,193.04,192.96,23.24907058]
[1734988013011,0.12549,193.01,192.94,23.24907058]
[1734988013416,20.0,193.02,192.94,23.24907058]
[1734988013803,20.0,193.02,192.96,23.24907058]
[1734988014520,0.12549,193.01,192.96,23.24907058]
[1734988014728,23.902374,193.01,192.94,23.24907058]
[1734988015107,0.12549,192.97,192.9,23.24907058]
[1734988015402,0.12549,192.97,192.88,23.24907058]
[1734988015602,23.902374,192.97,192.88,23.24907058]
[1734988015995,20.0,192.94,192.88,23.24907058]
[1734988017300,10.3626,193.0,192.9,23.24907058]
[1734988017500,0.12549,192.96,192.92,23.24907058]
[1734988018462,0.12549,192.98,192.9,23.24907058]
[1734988018604,23.902374,192.95,192.86,23.24907058]
[1734988018800,23.776884,192.95,192.85,23.24907058]
[1734988019100,20.0,192.94,192.85,23.24907058]
[1734988019306,23.776884,192.96,192.85,23.24907058]
[1734988019307,0.12549,192.91,192.85,23.24907058]
[1734988020137,10.3648,192.96,192.87,23.24907058]
[1734988020316,20.0,192.96,192.89,23.24907058]
[1734988020515,20.0,192.96,192.87,23.24907058]
[1734988020711,0.12549,192.94,192.85,23.24907058]
[1734988021327,0.12549,192.95,192.85,23.24907058]
[1734988021631,43.902374,192.95,192.85,23.24907058]
[1734988021841,20.0,192.93,192.85,23.24907058]
[1734988022008,23.902374,192.9,192.81,23.24907058]
[1734988022633,23.902374,192.88,192.81,23.24907058]
[1734988022838,23.902374,192.88,192.77,23.24907058]
[1734988023049,0.12549,192.83,192.77,23.24907058]
[1734988023235,0.12549,192.83,192.73,6.0306]
[1734988023236,23.776884,192.88,192.81,23.24907058]
[1734988023438,30.0,192.95,192.81,23.24907058]
[1734988023645,20.0,192.9,192.83,23.24907058]
[1734988024030,20.0,192.94,192.87,23.24907058]
[1734988024253,11.0511,192.97,192.87,23.24907058]
[1734988024544,0.12549,192.94,192.85,23.24907058]
[1734988024737,0.12549,192.94,192.83,23.24907058]
[1734988024941,0.12549,192.92,192.81,23.24907058]
[1734988025160,10.3659,192.94,192.83,23.24907058]
[1734988025455,30.0,192.93,192.85,23.24907058]
[1734988025641,0.12549,192.89,192.83,23.24907058]
[1734988026160,20.0,192.91,192.83,23.24907058]
[1734988026335,20.0,192.91,192.85,23.24907058]
[1734988027337,8.10751786,193.09,192.85,23.24907058]
[1734988027338,30.0,192.98,192.85,23.24907058]
[1734988027530,10.3643,192.97,192.85,23.24907058]
[1734988027723,0.12549,192.93,192.85,23.24907058]
[1734988029034,0.12549,192.89,192.83,23.24907058]
[1734988029751,20.0,192.9,192.83,23.24907058]
[1734988030353,10.3661,192.94,192.85,23.24907058]
[1734988030643,20.0,192.91,192.85,23.24907058]
[1734988030860,20.12549,192.9,192.83,23.24907058]
[1734988031047,0.12549,192.88,192.79,23.24907058]
[1734988032136,0.12549,192.88,192.59,28.47765564]
[1734988032137,0.12549,192.81,192.75,23.24907058]
[1734988032440,20.0,192.78,192.71,23.24907058]
[1734988032637,0.12549,192.77,192.71,23.24907058]
[1734988032856,0.12549,192.77,192.68,6.5762]
[1734988032857,0.12549,192.77,192.69,23.24907058]
[1734988033431,0.12549,192.75,192.69,23.24907058]
[1734988033638,0.12549,192.75,192.67,23.24907058]
[1734988033850,20.0,192.76,192.67,23.24907058]
[1734988033851,0.12549,192.73,192.67,23.24907058]
[1734988034545,10.3749,192.78,192.69,23.24907058]
[1734988034950,0.12549,192.77,192.69,23.24907058]
[1734988035148,20.0,192.79,192.73,23.24907058]
[1734988035339,44.98853777,192.86,192.75,23.24907058]
[1734988035538,40.3707,192.86,192.75,23.24907058]
[1734988035831,0.12549,192.83,192.73,23.24907058]
[1734988036036,0.12549,192.81,192.71,23.24907058]
[1734988036672,0.12549,192.83,192.73,23.24907058]
[1734988036972,20.0,192.76,192.67,0.77808875]
[1734988037172,20.0,192.76,192.65,2.8790286]
[1734988037173,20.0,192.76,192.68,23.24907058]
[1734988037366,20.0,192.76,192.7,23.24907058]
[1734988037866,0.12549,192.76,192.7,23.24907058]
[1734988038275,23.776884,192.82,192.72,23.24907058]
[1734988038447,20.0,192.78,192.72,23.24907058]
[1734988038646,30.0,192.81,192.72,23.24907058]
[1734988038947,0.12549,192.75,192.67,23.24907058]
[1734988039446,0.12549,192.78,192.67,23.24907058]
[1734988039764,0.12549,192.78,192.65,23.92519918]
[1734988039765,0.12549,192.72,192.65,23.92519918]
[1734988040273,0.12549,192.68,192.65,0.6761286]
[1734988040442,20.12549,192.68,192.65,0.6761286]
[1734988040642,20.12549,192.66,192.65,0.6761286]
[1734988041181,20.12549,192.66,192.65,2.86e-05]
[1734988041470,43.902374,192.66,192.65,2.86e-05]
[1734988041844,43.902374,192.66,192.49,2.1394]
[1734988041845,0.12549,192.62,192.52,23.24907058]
[1734988042076,0.12549,192.62,192.49,2.1394]
[1734988042077,0.12549,192.59,192.51,23.24907058]
[1734988042378,0.12549,192.57,192.43,6.1573]
[1734988042551,0.12549,192.52,192.43,23.24907058]
[1734988042875,0.12549,192.48,192.39,23.24907058]
[1734988043063,20.12549,192.47,192.38,6.1573]
[1734988043266,20.12549,192.47,192.32,2.91764237]
[1734988043267,50.12549,192.47,192.36,23.24907058]
[1734988043445,73.902374,192.47,192.35,23.24907058]
[1734988043770,0.12549,192.4,192.33,23.24907058]
[1734988043972,0.12549,192.4,192.32,8.2957]
[1734988043973,23.776884,192.46,192.35,23.24907058]
[1734988044157,20.0,192.44,192.35,38.02980145]
[1734988044354,30.0,192.46,192.32,8.2957]
[1734988044355,30.0,192.54,192.41,38.02980145]
[1734988044553,20.0,192.51,192.44,38.02980145]
[1734988044865,30.0,192.56,192.46,38.02980145]
[1734988045054,30.0,192.54,192.45,38.02980145]
[1734988045259,0.12549,192.53,192.45,38.02980145]
[1734988045658,30.0,192.6,192.49,38.02980145]
[1734988045859,30.0,192.57,192.46,38.02980145]
[1734988046263,0.12549,192.54,192.46,38.02980145]
[1734988046460,0.12549,192.54,192.44,38.02980145]
[1734988046843,30.0,192.57,192.44,38.02980145]
[1734988047046,30.0,192.57,192.46,38.02980145]
[1734988047448,20.0,192.54,192.46,38.02980145]
[1734988047675,20.0,192.56,192.46,38.02980145]
[1734988047894,0.12549,192.51,192.42,38.02980145]
[1734988048347,35.2151616,192.56,192.34,0.77925221]
[1734988048348,20.0,192.53,192.44,38.02980145]
[1734988048785,20.0,192.55,192.46,38.02980145]
[1734988048953,15.5998616,192.59,192.46,38.02980145]
[1734988049157,30.0,192.6,192.48,38.02980145]
[1734988049775,0.12549,192.59,192.48,38.02980145]
[1734988050080,10.3831,192.62,192.48,38.02980145]
[1734988050284,40.3831,192.62,192.5,38.02980145]
[1734988050483,10.3831,192.62,192.5,38.02980145]
[1734988050656,0.12549,192.61,192.5,38.02980145]
[1734988050989,7.26129642,192.65,192.45,2.94731022]
[1734988050990,7.26129642,192.65,192.54,38.02980145]
[1734988051195,40.3788,192.7,192.56,38.02980145]
[1734988051347,7.26129642,192.72,192.6,38.02980145]
[1734988051552,37.26129642,192.72,192.58,38.02980145]
[1734988051781,30.0,192.7,192.58,38.02980145]
[1734988052455,30.0,192.68,192.56,38.02980145]
[1734988052676,0.12549,192.67,192.56,38.02980145]
[1734988052901,10.3782,192.71,192.61,38.02980145]
[1734988053068,30.0,192.75,192.61,38.02980145]
[1734988053395,40.3764,192.75,192.61,38.02980145]
[1734988053902,40.3764,192.75,192.63,38.02980145]
[1734988054566,40.3764,192.75,192.61,38.02980145]
[1734988054881,40.3764,192.75,192.59,38.02980145]
[1734988054882,30.0,192.72,192.59,38.02980145]
[1734988055270,0.12549,192.68,192.58,2.0234]
[1734988055456,0.12549,192.65,192.58,2.0234]
[1734988056080,20.0,192.68,192.58,2.0234]
[1734988056385,10.3764,192.75,192.61,38.02980145]
[1734988056589,40.3739,192.79,192.65,38.02980145]
[1734988057391,40.3739,192.79,192.64,6.5367]
[1734988057392,10.3739,192.79,192.67,38.02980145]
[1734988057795,0.12549,192.78,192.67,38.02980145]
[1734988058162,0.12549,192.76,192.64,6.5367]
[1734988059191,10.3739,192.79,192.65,38.02980145]
[1734988059365,30.0,192.78,192.65,38.02980145]
[1734988059565,20.0,192.75,192.65,38.02980145]
[1734988059998,0.12549,192.74,192.64,6.5367]
[1734988060606,20.0,192.76,192.65,38.02980145]
[1734988060969,10.3739,192.79,192.67,38.02980145]
[1734988061512,0.12549,192.76,192.64,6.5367]
[1734988062302,0.12549,192.73,192.64,6.5367]
[1734988062802,0.12549,192.71,192.64,6.5367]
[1734988063526,20.0,192.72,192.64,6.5367]
[1734988063705,20.0,192.73,192.64,6.5367]
[1734988064909,20.12549,192.72,192.61,38.02980145]
[1734988065108,20.0,192.7,192.59,44.16120145]
[1734988065315,0.12549,192.69,192.59,44.16120145]
[1734988065601,0.12549,192.69,192.61,38.02980145]
[1734988066219,0.12549,192.69,192.61,23.33764839]
[1734988066714,0.12549,192.69,192.59,23.33764839]
[1734988067919,10.375,192.77,192.61,23.33764839]
[1734988068079,20.0,192.74,192.63,23.33764839]
[1734988069120,0.12549,192.73,192.63,23.33764839]
[1734988069308,0.12549,192.71,192.61,23.33764839]
[1734988069612,20.0,192.72,192.65,23.33764839]
[1734988070105,260.18148846,192.93,192.65,23.33764839]
[1734988070106,30.0,192.87,192.71,23.33764839]
[1734988070281,0.6921,192.88,192.75,23.33764839]
[1734988070282,10.3702,192.86,192.75,23.33764839]
[1734988070984,10.3702,192.86,192.73,23.33764839]
[1734988071180,30.0,192.87,192.72,23.776884]
[1734988071394,30.0,192.87,192.74,23.776884]
[1734988071594,0.6921,192.88,192.74,23.776884]
[1734988072293,10.368,192.9,192.79,23.33764839]
[1734988072499,10.368,192.9,192.8,23.776884]
[1734988073815,20.0,192.87,192.77,29.74694839]
[1734988074010,20.0,192.87,192.78,23.776884]
[1734988074383,11.0423286,192.94,192.83,23.33764839]
[1734988074588,11.0423286,192.94,192.8,23.776884]
[1734988074589,0.6761286,192.94,192.85,23.33764839]
[1734988074794,0.6761286,192.94,192.87,23.33764839]
[1734988075078,0.6761286,192.94,192.88,23.776884]
[1734988075787,0.6761286,192.94,192.83,23.33764839]
[1734988076221,0.6761286,192.94,192.84,23.776884]
[1734988076511,0.6761286,192.94,192.83,23.33764839]
[1734988076512,0.12549,192.93,192.83,23.33764839]
[1734988076696,0.12549,192.93,192.82,23.776884]
[1734988076892,0.12549,192.88,192.79,23.33764839]
[1734988078118,0.12549,192.88,192.8,23.776884]
[1734988079494,0.12549,192.88,192.77,29.74694839]
[1734988079815,10.3685,192.9,192.77,29.74694839]
[1734988079816,0.12549,192.86,192.77,29.74694839]
[1734988080020,20.0,192.87,192.78,23.776884]
[1734988080900,20.0,192.87,192.79,23.33764839]
[1734988081095,20.0,192.87,192.78,23.776884]
[1734988082526,20.0,192.87,192.79,23.33764839]
[1734988082815,7.26166793,192.93,192.81,23.33764839]
[1734988083119,0.6921,193.01,192.87,23.33764839]
[1734988083322,0.6921,193.01,192.89,23.33764839]
[1734988083690,10.363,193.0,192.89,23.33764839]
[1734988084223,10.361,193.04,192.91,23.33764839]
[1734988084430,10.361,193.04,192.92,23.776884]
[1734988084727,11.0511,193.07,192.93,47.11453239]
[1734988084937,0.6761286,193.13,192.93,47.11453239]
[1734988085109,10.3567,193.12,192.99,23.33764839]
[1734988085503,10.3567,193.12,193.01,23.33764839]
[1734988085739,1.86751548,193.11,192.97,23.33764839]
[1734988085946,30.0,193.1,192.93,23.33764839]
[1734988086106,30.0,193.06,192.9,6.1176]
[1734988086435,20.0,193.03,192.91,47.11453239]
[1734988086602,20.0,193.02,192.91,23.33764839]
[1734988086803,20.0,193.01,192.93,23.33764839]
[1734988087136,10.3602,193.05,192.93,23.33764839]
[1734988087137,0.12549,193.04,192.93,23.33764839]
[1734988087431,0.12549,193.04,192.91,23.33764839]
[1734988087925,0.12549,193.06,192.91,23.33764839]
[1734988088134,0.12549,193.02,192.9,6.1176]
[1734988088331,20.0,192.98,192.88,2.0565]
[1734988088631,20.0,192.98,192.85,23.33764839]
[1734988088939,20.0,192.98,192.83,6.572]
[1734988088940,20.0,192.98,192.89,23.33764839]
[1734988089142,20.0,192.98,192.83,30.68712186]
[1734988089143,0.12549,192.97,192.85,23.33764839]
[1734988090855,20.0,192.9,192.79,23.33764839]
[1734988091085,20.0,192.86,192.74,2.1964]
[1734988091355,0.12549,192.85,192.73,23.33764839]
[1734988091546,20.0,192.86,192.77,23.33764839]
[1734988091752,30.0,192.95,192.79,23.33764839]
[1734988091937,20.0,192.93,192.83,23.33764839]
[1734988092442,20.0,192.93,192.81,23.33764839]
[1734988092756,30.49269,192.92,192.81,23.33764839]
[1734988092970,20.0,192.89,192.81,23.33764839]
[1734988093458,20.0,192.93,192.81,23.33764839]
[1734988093958,20.0,192.93,192.83,23.33764839]
[1734988094340,10.3651,192.96,192.79,23.776884]
[1734988094540,10.3651,192.96,192.78,0.77766518]
[1734988094541,0.12549,192.95,192.83,23.776884]
[1734988094753,0.12549,192.95,192.78,0.77766518]
[1734988094754,10.3659,192.94,192.8,23.33764839]
[1734988094959,10.3659,192.94,192.81,23.776884]
[1734988095255,0.12549,192.9,192.78,23.33764839]
[1734988095663,20.0,192.91,192.8,23.33764839]
[1734988096338,10.3659,192.94,192.82,23.33764839]
[1734988096550,10.3659,192.94,192.84,23.33764839]
[1734988097066,0.12549,192.93,192.82,23.33764839]
[1734988097478,30.12549,192.93,192.8,23.33764839]
[1734988097687,20.0,192.91,192.81,23.776884]
[1734988097982,20.0,192.91,192.82,23.33764839]
[1734988098283,20.0,192.91,192.83,23.776884]
[1734988098783,10.3659,192.94,192.84,23.33764839]
[1734988098949,20.0,192.95,192.85,23.776884]
[1734988100396,10.3641,192.98,192.85,23.776884]
[1734988100680,17.62366793,193.02,192.89,23.776884]
[1734988101648,10.362,193.02,192.89,23.776884]
[1734988102276,20.0,192.99,192.89,23.776884]
[1734988102665,10.3635,192.99,192.89,23.776884]
[1734988102851,10.3595,193.06,192.93,23.776884]
[1734988103055,10.3595,193.06,192.95,23.776884]
[1734988104370,10.3573,193.1,192.95,23.776884]
[1734988104571,31.99300548,193.09,192.95,23.776884]
[1734988104770,0.12549,193.05,192.95,23.776884]
[1734988105082,20.0,193.06,192.95,23.776884]
[1734988105264,0.12549,193.05,192.93,2.0913]
[1734988105648,0.12549,193.03,192.93,2.0913]
[1734988105971,20.12549,193.03,192.93,2.0913]
[1734988106144,20.0,193.03,192.93,2.0913]
[1734988106351,20.0,193.03,192.94,24.11491774]
[1734988106578,20.7146,193.1,192.95,6.656]
[1734988106785,22.58211548,193.1,192.95,6.656]
[1734988106983,5.39415245,193.09,192.95,6.656]
[1734988107187,0.12549,193.06,192.95,6.656]
[1734988107594,10.3587,193.08,192.95,7.43310842]
[1734988107753,10.3587,193.08,192.96,23.33764839]
[1734988107950,10.3587,193.08,192.97,0.77696892]
[1734988108394,1.3711286,193.13,192.99,23.776884]
[1734988108395,10.3565,193.12,192.99,23.776884]
[1734988108691,10.3565,193.12,193.02,23.33764839]
[1734988108893,0.12549,193.11,193.0,23.33764839]
[1734988109196,10.3565,193.12,192.99,23.776884]
[1734988109353,10.3565,193.12,192.99,24.5537599]
[1734988109555,10.3565,193.12,192.99,23.776884]
[1734988109780,0.12549,193.11,192.98,23.33764839]
[1734988109984,0.12549,193.09,192.96,23.33764839]
[1734988110194,0.12549,193.09,192.95,6.656]
[1734988110195,7.38715793,193.09,192.95,6.656]
[1734988110399,0.12549,193.07,192.95,6.656]
[1734988110759,0.12549,193.07,192.86,0.77719798]
[1734988110760,20.0,193.03,192.9,29.54254839]
[1734988111161,0.12549,193.02,192.9,29.54254839]
[1734988111378,20.0,193.01,192.9,6.2049]
[1734988111892,30.3626,193.01,192.9,6.2049]
[1734988112185,30.3626,193.01,192.9,6.9822517]
[1734988112396,10.3606,193.04,192.92,23.33764839]
[1734988112601,10.3606,193.04,192.9,6.2049]
[1734988112787,30.12549,193.03,192.87,2.0273]
[1734988112975,0.12549,193.0,192.87,2.0273]
[1734988113179,0.12549,193.0,192.85,6.0076]
[1734988113180,0.12549,192.98,192.85,6.0076]
[1734988113495,0.12549,192.98,192.81,23.33764839]
[1734988113496,0.12549,192.94,192.81,23.33764839]
[1734988113797,10.3659,192.94,192.83,23.33764839]
[1734988113992,10.3659,192.94,192.8,8.5499]
[1734988113993,15.75815245,192.98,192.85,23.33764839]
[1734988114202,5.39415245,192.98,192.87,23.33764839]
[1734988114375,41.442,193.04,192.89,23.33764839]
[1734988114700,41.442,193.04,192.87,23.33764839]
[1734988114701,0.12549,193.03,192.87,23.33764839]
[1734988115194,1.99300548,193.03,192.88,23.776884]
[1734988115404,40.362,193.02,192.88,23.776884]
[1734988115591,0.12549,192.98,192.85,23.33764839]
[1734988115797,20.0,192.97,192.85,23.33764839]
[1734988116175,20.12549,192.96,192.85,23.33764839]
[1734988116374,20.12549,192.96,192.83,23.33764839]
[1734988116697,20.0,192.94,192.83,23.33764839]
[1734988116996,20.0,192.94,192.84,23.776884]
[1734988117172,0.12549,192.96,192.84,23.776884]
[1734988117378,20.0,192.94,192.84,23.776884]
[1734988118596,20.0,192.91,192.81,23.33764839]
[1734988120499,30.3675,192.91,192.81,23.33764839]
[1734988120898,20.0,192.92,192.81,23.33764839]